Cogmind - Beta 13 @@@ ROGUE MODE // 2024.05.27 @ 20:50:56 Player: Zeldest Result: Destroyed by YI-UF0 with YI-UF0's Doublenader Performance ------------- Evolutions (0) 0 Regions Visited (2) 400 Robots Destroyed (8) 40 Value Destroyed (114) 114 Prototype IDs (0) 0 Alien Tech Used (0) 0 Bonus (-77) -77 TOTAL SCORE: 477 Bonus ------- Follower Combat Kills 35 Friendly Fire -112 Cogmind --------- Core Integrity 0/250 Matter 299/300 Energy 95/100 System Corruption 0% Temperature Cool (53) Movement Core (150) Ox2 Location -10/Mines Parts ------- > --- POWER (1) -------- (None) > --- PROPULSION (2) --- (None) > --- UTILITY (2) ------ Small Storage Unit Signal Interpreter > --- WEAPON (2) ------- Medium Laser > --- INVENTORY (8) ---- Ion Engine Large Battery (200) Targeting Computer ECM Suite Weapon Shielding Grenade Launcher Grenade Launcher Peak State ------------ > --- POWER ------------ Ion Engine > --- PROPULSION ------- Light Treads Light Treads > --- UTILITY ---------- Small Storage Unit Signal Interpreter > --- WEAPON ----------- EM Pulse Gun Particle Gun > --- INVENTORY -------- Ion Engine Large Battery ECM Suite Weapon Shielding Medium Laser Grenade Launcher Grenade Launcher [Rating: 8] Favorites ----------- Power Ion Engine Engine Ion Engine Propulsion Light Treads Treads Light Treads Utility Small Storage Unit Storage Small Storage Unit Processor Signal Interpreter Weapon EM Pulse Gun Energy Gun EM Pulse Gun Launcher Grenade Launcher Build | -11 -10 -10 ------- Run | Yrd Mat Min Slots Evolved . | . . . Power . | . . . Propulsion . | . . . Utility . | . . . Weapon . | . . . Parts Attached 13 | 6 3 4 Power 1 | 1 . . Engine 1 | 1 . . Core . | . . . Reactor . | . . . Propulsion 2 | 2 . . Treads 2 | 2 . . Leg . | . . . Wheel . | . . . Hover . | . . . Flight . | . . . Utility 2 | 1 1 . Device . | . . . Storage 1 | 1 . . Processor 1 | . 1 . Hackware . | . . . Protection . | . . . Artifact . | . . . Weapon 8 | 2 2 4 Energy Gun 6 | 2 1 3 Energy Cannon . | . . . Ballistic Gun . | . . . Ballistic Cannon . | . . . Launcher 2 | . 1 1 Special Weapon . | . . . Impact Weapon . | . . . Slashing Weapon . | . . . Piercing Weapon . | . . . Special Melee Weapon . | . . . Unidentified Prototypes . | . . . Parts Lost 5 | . . 5 Power 1 | . . 1 Propulsion 2 | . . 2 Utility . | . . . Weapon 2 | . . 2 Highest Loss Streak 5 | . . 5 To Critical Strikes . | . . . Average Slot Usage (%) 95 | . 95 96 Engine 13 | . 14 13 Treads 26 | . 28 25 Storage 14 | . 14 14 Processor 12 | . 9 14 Energy Gun 24 | . 25 24 Launcher 2 | . 2 2 Naked Turns . | . . . Heaviest Build 15 | 14 15 15 Greatest Support 40 | 40 40 40 Greatest Overweight (x) 4 | 4 . 4 Average Overweight (x) . | . . . Largest Inventory Capacity 8 | 8 8 8 Average Capacity 7 | 7 8 8 Most Carried 8 | 5 5 8 Average Carried 5 | 2 3 7 Final Capacity 8 | 8 8 8 Final Carried 7 | 2 5 7 Class Distribution -------------------- 100% | Mutant Dominant Class ---------------- Mutant | -10/Materials Mutant | -10/Mines Resources | -11 -10 -10 ----------- Run | Yrd Mat Min Matter Collected 374 | 216 3 155 Remotely . | . . . Salvage Created 97 | . 8 89 Parts 12 | . 2 10 Haulers Intercepted . | . . . Recyclers Shooed 1 | . 1 . Parts Field Recycled . | . . . Retrieved Matter . | . . . Parts Self-Destructed . | . . . Prevented . | . . . Kills | -11 -10 -10 ------- Run | Yrd Mat Min Combat Hostiles Destroyed 7 | . 3 4 Guns 3 | . 1 2 AOE 4 | . 2 2 Classes Destroyed 2 | . 1 1 Swarmer 6 | . 3 3 Grunt 2 | . . 2 Best Kill Streak 3 | . 3 3 Combat Bots Only 3 | . 3 3 Max Kills in Single Turn 2 | . 1 2 Gunslinging . | . . . Exploded 1 | . 1 1 Melee . | . . . Uniques/NPCs Destroyed . | . . . Combat | -11 -10 -10 -------- Run | Yrd Mat Min Hostile Shots Fired 50 | . 13 37 Missed 17 | . 3 14 Damage Taken 890 | . 179 711 Core 255 | . 6 249 Absorbed by Shields . | . . . Core Remaining (%) 100 | 100 . . Volleys Fired 15 | . 4 11 Largest 2 | . 2 2 Hottest 115 | . 70 115 Shots Fired 24 | . 8 16 Gun 17 | . 4 13 Cannon . | . . . Launcher 7 | . 4 3 Special . | . . . Kinetic . | . . . Thermal 9 | . . 9 Explosive 7 | . 4 3 Electromagnetic 8 | . 4 4 Robot Hit Streak 5 | . 2 5 Robot Miss Streak 3 | . 1 3 Penetration Max . | . . . Secondary Targets . | . . . Shots Hit Robots 12 | . 3 9 Core Hits 10 | . 4 6 Critical Kills . | . . . Critical Parts Destroyed . | . . . Critical Strikes . | . . . Melee Attacks . | . . . Impact . | . . . Slashing . | . . . Piercing . | . . . Sneak Attacks . | . . . Combat Hostiles . | . . . Follow-up Attacks . | . . . Damage Inflicted 529 | . 307 222 Guns 123 | . 10 113 Cannons . | . . . Explosions 406 | . 297 109 Melee . | . . . Ramming . | . . . Kinetic . | . . . Thermal 74 | . . 74 Explosive 406 | . 297 109 Electromagnetic 49 | . 10 39 Impact . | . . . Slashing . | . . . Piercing . | . . . Highest Corruption . | . . . Average Corruption . | . . . Corruption Purged . | . . . Corruption Blocked . | . . . Overload Shots . | . . . Overflow Damage . | . . . Projectiles . | . . . Explosions . | . . . Melee . | . . . Knockbacks . | . . . Impact . | . . . Kinetic . | . . . Secondary . | . . . Self-Inflicted Damage 143 | . 96 47 Shots 5 | . 3 2 Rammed . | . . . Targets Rammed . | . . . Kicked . | . . . Crushed . | . . . Highest Temperature 53 | . 36 53 Average Temperature 26 | . 19 29 Received Heat Transfer . | . . . Siege Activations . | . . . Robots Corrupted . | . . . Combat Hostiles . | . . . Parts Fried . | . . . Impact Corruptions . | . . . Robots Melted . | . . . Combat Hostiles . | . . . Parts Melted . | . . . Heat Transferred 222 | . . 222 Parts Sabotaged . | . . . Parts Stolen . | . . . Parts Stripped . | . . . Power Chain Reactions . | . . . Alert | -11 -10 -10 ------- Run | Yrd Mat Min Peak Influence 199 | . 129 199 Initial 49 | . . 49 Average 118 | . 65 174 Maximum Alert Level . | . . . Low Security (%) 100 | 100 100 100 Level 1 . | . . . Level 2 . | . . . Level 3 . | . . . Level 4 . | . . . Level 5 . | . . . High Security . | . . . Max Security . | . . . Squads Dispatched . | . . . Investigation . | . . . Extermination . | . . . Reinforcement . | . . . Assault . | . . . Garrison . | . . . Intercept . | . . . Searches Triggered . | . . . Construction Impeded . | . . . Haulers Reinforced . | . . . Active Scanning Responses . | . . . Cargo Convoy Interrupts . | . . . Stealth | -11 -10 -10 --------- Run | Yrd Mat Min Distress Signals . | . . . Communications Jammed . | . . . Distress Signals . | . . . Times Spotted 9 | . 3 6 Peak Tracking Total 3 | . 3 3 Tactical Retreats . | . . . Traps | -11 -10 -10 ------- Run | Yrd Mat Min Traps Triggered . | . . . Indirectly . | . . . Trap Hack Attempts . | . . . Triggered . | . . . Disarmed . | . . . Reprogrammed . | . . . Reused . | . . . Traps Extracted . | . . . Installed . | . . . Triggered . | . . . Machines | -11 -10 -10 ---------- Run | Yrd Mat Min Machines Disabled 2 | . 2 . Max in Single Turn 2 | . 2 . Machines Repaired . | . . . Machines Dismantled . | . . . Machines Sabotaged . | . . . Overloaded Fab Kills . | . . . Hacking | -11 -10 -10 --------- Run | Yrd Mat Min Machines Accessed 1 | . 1 . Terminals . | . . . Fabricators . | . . . Repair Stations . | . . . Recycling Units 1 | . 1 . Scanalyzers . | . . . Garrison Access . | . . . Total Hacks 1 | . 1 . Successful 1 | . 1 . Failed . | . . . Catastrophic . | . . . Database Lockouts . | . . . Manual . | . . . Terminals . | . . . Fabricators . | . . . Repair Stations . | . . . Recycling Units 1 | . 1 . Scanalyzers . | . . . Garrison Access . | . . . Terminal Hacks . | . . . Fabricator Hacks . | . . . Repair Station Hacks . | . . . Recycling Unit Hacks 1 | . 1 . Report Inventory 1 | . 1 . Scanalyzer . | . . . Garrison Access Hacks . | . . . Unauthorized Hacks . | . . . Terminals . | . . . Fabricators . | . . . Repair Stations . | . . . Recycling Units . | . . . Scanalyzers . | . . . Garrison Access . | . . . Data Cores Recovered . | . . . Used . | . . . Hacking Detections . | . . . Full Trace Events . | . . . Feedback Events . | . . . Feedback Blocked . | . . . Robot Schematics Acquired . | . . . Robots Built . | . . . Authchips . | . . . Time . | . . . Total Robot Build Rating . | . . . Part Schematics Acquired . | . . . Parts Built . | . . . Authchips . | . . . Time . | . . . Total Part Build Rating . | . . . Parts Repaired . | . . . Time . | . . . Parts Recycled . | . . . Recycled Matter . | . . . Retrieved Matter . | . . . Retrieved Components . | . . . Parts Scanalyzed . | . . . Part Schematics Acquired . | . . . Parts Damaged . | . . . Bothacking | -11 -10 -10 ------------ Run | Yrd Mat Min Used RIF Installer . | . . . Robots Hacked . | . . . Non-combat . | . . . Combat . | . . . Robot Hacks Applied . | . . . Relay Couplers Released . | . . . Fabnet Peak Effective % . | . . . Robots Rewired . | . . . Allies Hacked . | . . . Hacks Repelled . | . . . Allies | -11 -10 -10 -------- Run | Yrd Mat Min Total Allies 3 | . . 3 Largest Group 3 | . . 3 Highest-Rated Group 40 | . . 40 Highest-Rated Ally 16 | . . 16 Total Orders . | . . . Ally Attacks 11 | . . 11 Total Damage 113 | . . 113 Kills 1 | . . 1 Allies Corrupted . | . . . Allies Melted . | . . . Intel | -11 -10 -10 ------- Run | Yrd Mat Min Robot Analysis Total . | . . . Derelict Logs Recovered 2 | . . 2 Drone Launches . | . . . Drone Recoveries . | . . . Exploration | -11 -10 -10 ------------- Run | Yrd Mat Min Turns Passed 721 | 76 253 392 Spaces Moved 399 | 43 138 218 Core 21 | 18 . 3 Treads 378 | 25 138 215 Legs . | . . . Wheels . | . . . Hover . | . . . Flight . | . . . Fastest Speed 50 | 50 160 160 Average Speed 159 | 146 160 161 Slowest Speed 250 | 250 160 250 Overloaded Moves . | . . . Propulsion Burnouts . | . . . Robots Hopped . | . . . Cave-ins Triggered . | . . . Exploration Rate (%) 23 | 4 32 33 Regions Visited 2 Branch Regions 1 Pre-discovered Areas 1 | . . 1 Known Exits Taken 1 | . 1 . Unknown Exits Taken 1 | 1 . . Scrap Searched 1 | . . 1 Spaces Dug . | . . . Terrain Destroyed 57 | . 28 29 Melee . | . . . Projectile . | . . . AOE 57 | . 28 29 Terrain Rammed . | . . . Walls Destroyed . | . . . Machines Disabled . | . . . Actions | -11 -10 -10 --------- Run | Yrd Mat Min Total 460 | 56 162 242 Wait 18 | . 12 6 Move 397 | 42 137 218 Hop . | . . . Pick Up 16 | 8 5 3 Fast Attach . | . . . Attach 8 | 6 1 1 Detach . | . . . Swap 5 | . 2 3 Drop 1 | . 1 . Fire 15 | . 4 11 Melee . | . . . Ram . | . . . Kick . | . . . Crush . | . . . Escape Stasis . | . . . Rewire . | . . . Trap . | . . . Miscellaneous . | . . . Route ------- -11/Scrapyard -10/Materials -10/Mines History --------- Turn | Location | Event 46 | -11/Scrapyard | Discovered new exit (range 16) 77 | -11/Scrapyard | Entered Materials 279 | -10/Materials | Discovered new exit (range 16) 309 | -10/Materials | Build established: Mutant 327 | -10/Materials | Identified exit to Mines 330 | -10/Materials | Entered Mines 376 | -10/Mines | Learned Materials garrison access intel 389 | -10/Mines | Assisted by bots powering up and referring to "LRC-V3" 392 | -10/Mines | Learned location of Zion (-6) 404 | -10/Mines | YI-UF0 nonchalantly dropped a Grenade Launcher on the ground 701 | -10/Mines | Core integrity fell below 50% 721 | -10/Mines | Core integrity fell below 20% 722 | -10/Mines | Destroyed by YI-UF0 with YI-UF0's Doublenader Last Messages --------------- 00683_ EM Pulse Gun destroyed. 00685_ YI-UF0: "WHAAM!" 00685_ Trooper 1b destroyed. 00685_ Lgt. Treads destroyed. 00688_ YI-UF0 mumbles something. 00689_ The unstable cave ceiling collapses. 00690_ Trooper 1a destroyed. 00695_ The unstable cave ceiling collapses. 00700_ Lgt. Treads destroyed. 00704_ The unstable cave ceiling collapses. 00706_ R-06 Scavenger destroyed. 00707_ YI-UF0 mumbles something. 00707_ The unstable cave ceiling collapses. 00710_ YI-UF0: "BLAM!" 00710_ R-06 Scavenger destroyed. 00710_ YI-UF0: "KAPOW!" 00712_ Particle Gun destroyed. 00712_ Ion Engine destroyed. 00713_ The unstable cave ceiling collapses. 00721_ Destroyed Shock Absorption System. Map ----- +----------------------------------------------------+ | ?????????????????????????????????????????????????? | | ?????????????????????????????????????????????????? | | ?????????????????????????????????????????????????? | | ?????????????????????????????????????????????????? | | ?????????????????????????????????????????????????? | | ?????????????????????????????????????????????????? | | ?????????????????????????????????????????????????? | | ?????????????????????????????????????????????????? | | ?????????????????????????????????????????????????? | | ?????????????????????????????????????????????????? | | ????????????????????????????#######??????????????? | | ???????????????????????????## ##?????????????? | | ??????????????????????????## ##??#####?????? | | ??????????????????????????# ## ##????? | | ??????????????????????????## #????? | | ??????????????????????????# ## #?????? | | ??????????????????##??????# # ###?????????? | | ?????????????????? #?????#### #####???????????? | | ??????????????????# #???######## ##??????????????? | | ??????????????????# #???# #### #??????????????? | | ??????????????????# #?### ##?????????????? | | ??????????????????# ### # ##?????????????? | | ?????????????????# ## #?????????????? | | ?????????????????#%%!# = #?????????????? | | ???????????????####**= #?????????????? | | ????????????#??# g[| @ ##????????????? | | ???????????## ?# ## ##?????????????? | | ??????????## # # # #??????????????? | | ?????????? ## #??????????#### | | ?????????? % #######????## | | ??????????# ! = #???## | | ???????????# % [ ###### ##### " | | ???????????# # % #????# " | | ?????????????# # ###????## #### " | | ?????????????## #??????# #??## | | ??????????????## #??##### #???# | | ???????????????### ### ##??# #???## | | ?????????????????# ??###########???# #####????## | | ?????????????????#?????????????????# #?????????## | | ??????????????????????????????????## ##?????????## | | ?????????????????????????????????## ######?????# | | ?????????????????????????????????# #?????? | | ???????????????????????????####### #?????? | | ???????????????????????????# ### #?????? | | ???????????????????????????# !!! ##?####?????? | | ???????????????????????????# !!!! #???????????? | | ???????????????????????????# !! #???????????? | | ???????????????????????????# !!! ##???????????? | | ???????????????????????????# ###????????????? | | ???????????????????????????#######???????????????? | +----------------------------------------------------+ Best States ------------- Heat Dissipation 25 Energy Generation 10 Energy Capacity 250 Matter Stores 299 Matter Capacity 300 Sight Range 16 Terrain Scan Density 10 Evasion (%) 50 Recoil Reduction 2 Item Schematics ----------------- None Robot Schematics ------------------ None Fabricated ------------ Nothing Alien Tech Used ----------------- None Achievements -------------- None Challenges ------------ None Game ------ Seed PlasmaFrostBay Manual? 0 Play Time 00:09:37 Cumulative 29.2 hours Start 2024.05.27 @ 20:43:42 End 2024.05.27 @ 20:50:56 Sessions 1 Manual Loads 0 Difficulty Rogue Special Mode None Game No. 64 Rogue 64 Adventurer 0 Explorer 0 Win Type - Total 0 Types 0/0/0/0/0/0/0/0/0 Lore% 20 Gallery% 27 Achievement% 25 Wizard Run 0 Options --------- Layout 1 ASCII 0 Keyboard 0 Movement Numpad Keybinds 0 Fullscreen 1 Font 24/Smallcaps Map View 50x35 Zoom Use 0% Tactical HUD 1 Map Filters NONE Filters NONE Steam 1 RUN: 91789088-4be6-43ef-9f3f-70c596a5a3bb